fUST/lending_fUST_20260327
["ID","MTS","AMOUNT","RATE_DAILY","PERIOD"]
[418946319,1774613463484,-604.22052,0.00016438,2]
[418946320,1774613463494,-4727.860639,0.00016438,2]
[418946321,1774613463505,-1412.306439,0.00016438,2]
[418946322,1774613463514,-604.22052,0.00016438,2]
[418946323,1774613463525,-4727.860639,0.00016438,2]
[418946324,1774613463535,-1412.306439,0.00016438,2]
[418946325,1774613463545,-604.22052,0.00016438,2]
[418946326,1774613463554,-4727.860639,0.00016438,2]
[418946327,1774613463565,-1412.306439,0.00016438,2]
[418946328,1774613463574,-604.22052,0.00016438,2]
[418946329,1774613463584,-4727.860639,0.00016438,2]
[418946330,1774613463595,-1412.306439,0.00016438,2]
[418946331,1774613463605,-604.22052,0.00016438,2]
[418946332,1774613463614,-4727.860639,0.00016438,2]
[418946333,1774613463623,-1412.306439,0.00016438,2]
[418946334,1774613463633,-604.22052,0.00016438,2]
[418946335,1774613463643,-4727.860639,0.00016438,2]
[418946336,1774613463653,-1412.306439,0.00016438,2]
[418946337,1774613463663,-604.22052,0.00016438,2]
[418946338,1774613463672,-4727.860639,0.00016438,2]
[418946339,1774613463682,-1412.306439,0.00016438,2]
[418946340,1774613463691,-4727.8606324,0.00016438,2]
[418946341,1774613463701,-604.22051,0.00016438,2]
[418946342,1774613463710,-1412.306439,0.00016438,2]
[418946343,1774613463719,-1412.306439,0.00016438,2]
[418946344,1774613463728,-1412.306439,0.00016438,2]
[418946345,1774613463737,-1412.306439,0.00016438,2]
[418946346,1774613463747,-1412.306439,0.00016438,2]
[418946347,1774613463756,-3000.0,0.00016438,2]
[418946348,1774613463766,-2500.0,0.00016438,2]
[418946349,1774613463776,-2517.7248926,0.00016438,2]
[418946350,1774613463785,-1218.34167726,0.00016438,2]
[418946351,1774613463795,-3000.0,0.00016438,2]
[418946352,1774613463804,-1219.03938951,0.00016438,2]
[418946353,1774613463814,-2516.4629596,0.00016438,2]
[418946354,1774613463823,-1322.33490837,0.00016438,2]
[418946355,1774613463833,-2506.50647638,0.00016438,2]
[418946356,1774613463843,-3000.0,0.00016438,2]
[418946357,1774613463853,-3000.0,0.00016438,2]
[418946358,1774613463863,-1000.0,0.000165,2]
[418946359,1774613463873,-239.41358973,0.00016565,30]
[418946360,1774613463882,-336.37838689,0.00016566,30]
[418946361,1774613463891,-431.92140401,0.00016568,30]
[418946362,1774613463900,-202.23680987,0.00016568,30]
[418946363,1774613463910,-525.36251356,0.00016673,60]
[418946364,1774613463919,-740.21397583,0.00016701,2]
[418946365,1774613463929,-391.53709553,0.00016705,2]
[418946366,1774613463938,-698.2,0.00016712,2]
[418946367,1774613463949,-521.81,0.00016712,2]
[418946368,1774613463959,-500.0,0.00016712,2]
[418946369,1774613463968,-700.79,0.00016712,2]
[418946370,1774613463978,-947.7,0.00016712,2]
[418946371,1774613463988,-301.54454551,0.00016735,60]
[418946372,1774613463997,-229.9409939,0.00016809,60]
[418946373,1774613464007,-151.0,0.00016834,2]
[418946374,1774613464017,-276.40634194,0.00016888,2]
[418946375,1774613464027,-2741.34939516,0.00016918,2]
[418946376,1774613464037,-439.0,0.00016925,2]
[418946377,1774613464047,-439.0,0.00016925,2]
[418946378,1774613464056,-736.0,0.00016925,2]
[418946379,1774613464066,-184.0,0.00016925,2]
[418946380,1774613464076,-698.2,0.00016986,2]
[418946381,1774613464086,-521.81,0.00016986,2]
[418946382,1774613464096,-500.0,0.00016986,2]
[418946383,1774613464106,-700.79,0.00016986,2]
[418946384,1774613464116,-947.7,0.00016986,2]
[418946385,1774613464126,-250.0,0.00016986,2]
[418946386,1774613464135,-1339.7304333,0.00016986,2]
[418946387,1774613464146,-3500.0,0.00016986,2]
[418946388,1774613464155,-3500.0,0.00016986,2]
[418946389,1774613464165,-3500.0,0.00016986,2]
[418946390,1774613464175,-200.0,0.00017,2]
[418946391,1774613464184,-1000.0,0.00017,10]
[418946392,1774613464194,-1000.0,0.00017,2]
[418946393,1774613464203,-500.0,0.00017033,2]
[418946394,1774613464212,-698.2,0.0001726,2]
[418946395,1774613464222,-521.84332545,0.0001726,2]
[418946396,1774613464231,-446.59073731,0.0001726,2]
[418946397,1774613464241,-700.88721549,0.0001726,2]
[418946398,1774613464251,-947.79409444,0.0001726,2]
[418946399,1774613464260,-197.801,0.00017291,2]
[418946400,1774613464270,-239.41358973,0.00017294,60]
[418946401,1774613464280,-349.47492962,0.00017296,60]
[418946402,1774613464289,-336.37838689,0.00017296,60]
[418946403,1774613464299,-202.23680987,0.00017297,60]
[418946404,1774613464308,-431.92140401,0.00017297,60]
[418946405,1774613464318,-525.36251356,0.0001734,60]
[418946406,1774613464327,-500.0,0.00017358,2]
[418946407,1774613464337,-500.0,0.00017361,2]
[418946408,1774613464347,-1513.01422297,0.00017394,18]
[418946409,1774613464356,-229.9409939,0.00017428,60]
[418946410,1774613464366,-1000.0,0.000175,2]
[418946411,1774613464376,-698.2,0.00017534,2]
[418946412,1774613464386,-350.0,0.00017534,2]
[418946413,1774613464395,-4022.54511412,0.00017534,2]
[418946414,1774613464404,-2726.69195732,0.00017534,2]
[418946415,1774613464414,-4000.0,0.00017534,2]
[418946416,1774613464424,-500.0,0.00017575,2]
[418946417,1774613464433,-2155.64238378,0.000176,2]
[418946418,1774613464442,-500.0,0.0001771,2]
[418946419,1774613464452,-698.2,0.00017808,2]
[418946420,1774613464462,-14291.13053139,0.00017827,2]
[418946421,1774613464472,-16137.01516256,0.000179,2]
[418946422,1774613464482,-16137.01516254,0.000179,2]
[418946423,1774613464491,-16137.01516254,0.000179,2]
[418946424,1774613464500,-16137.01516254,0.000179,2]
[418946425,1774613464510,-508.34508231,0.00018,2]
[418946426,1774613464520,-4264.15,0.00018,2]
[418946427,1774613464530,-5633.14255284,0.00018,2]
[418946428,1774613464540,-1000.0,0.00018,2]
[418946429,1774613464550,-525.36251356,0.00018008,60]
[418946430,1774613464559,-239.41358973,0.00018024,60]
[418946431,1774613464569,-336.37838689,0.00018025,60]
[418946432,1774613464578,-202.23680987,0.00018027,60]
[418946433,1774613464587,-431.92140401,0.00018027,60]
[418946434,1774613464596,-229.9409939,0.00018047,120]
[418946435,1774613464606,-301.54454551,0.00018082,60]
[418946436,1774613464616,-698.2,0.00018082,2]
[418946437,1774613464625,-450.0,0.00018082,2]
[418946438,1774613464634,-4500.0,0.00018082,2]
[418946439,1774613464643,-229.94099384,0.00018122,120]
[418946440,1774613464652,-159.37410035,0.00018123,60]
[418946441,1774613464662,-5633.14255284,0.000182,2]
[418946442,1774613464671,-698.2,0.00018356,2]
[418946443,1774613464682,-252.55355938,0.00018356,2]
[418946444,1774613464692,-5633.14255284,0.000184,2]
[418946445,1774613464702,-706.060558,0.00018493,2]
[418946446,1774613464712,-5633.14255284,0.000185,2]
[418946447,1774613464799,-1000.0,0.000185,2]
[418946448,1774613464809,-610.24730351,0.00018556,2]
[418946449,1774613464819,-698.2,0.0001863,2]
[418946450,1774613464828,-550.0,0.0001863,2]
[418946451,1774613464838,-5070.56477399,0.0001863,2]
[418946452,1774613464848,-525.36251356,0.00018675,120]
[418946453,1774613464858,-5633.14255284,0.000187,2]
[418946454,1774613464868,-239.41358973,0.00018753,60]
[418946455,1774613464878,-349.47492962,0.00018755,60]
[418946456,1774613464888,-336.37838689,0.00018755,60]
[418946457,1774613464898,-202.23680987,0.00018757,60]
[418946458,1774613464908,-431.92140401,0.00018757,60]
[418946459,1774613464918,-5000.0,0.00018768,2]
[418946460,1774613464928,-161.92464787,0.00018788,14]
[418946461,1774613464938,-151.0,0.00018834,2]
[418946462,1774613464948,-205.42257399,0.00018863,60]
[418946463,1774613464958,-245.24711577,0.00018863,120]
[418946464,1774613464968,-175.73399915,0.00018863,120]
[418946465,1774613464978,-160.0,0.000189,3]
[418946466,1774613464988,-160.0,0.000189,4]
[418946467,1774613464998,-5633.14255284,0.000189,2]
[418946468,1774613465008,-698.2,0.00018904,2]
[418946469,1774613465018,-88.26645623,0.00018966,120]
[418946470,1774613465028,-160.82375759,0.00018972,120]
[418946471,1774613465038,-181.63218336,0.00018972,120]
[418946472,1774613465048,-20000.0,0.00019,4]
[418946473,1774613465058,-9312.94880521,0.00019,2]
[418946474,1774613465069,-900.0,0.00019,5]
[418946475,1774613465079,-1000.0,0.00019,2]
[418946476,1774613465089,-5633.14255284,0.000191,2]
[418946477,1774613465099,-454.8838011,0.00019135,2]
[418946478,1774613465108,-917.53921154,0.00019178,2]
[418946479,1774613465118,-698.2,0.00019178,2]
[418946480,1774613465128,-1282.46,0.00019178,2]
[418946481,1774613465137,-1282.46,0.00019178,2]
[418946482,1774613465147,-1282.46,0.00019178,2]
[418946483,1774613465157,-1282.46,0.00019178,2]
[418946484,1774613465167,-1282.46,0.00019178,2]
[418946485,1774613465176,-1282.46,0.00019178,2]
[418946486,1774613465187,-1282.46,0.00019178,2]
[418946487,1774613465196,-1282.46,0.00019178,2]
[418946488,1774613465206,-620.05,0.00019178,2]
[418946489,1774613465216,-321.0,0.00019178,2]
[418946490,1774613465225,-322.0,0.00019178,2]
[418946491,1774613465235,-323.0,0.00019178,2]
[418946492,1774613465245,-650.0,0.00019178,2]
[418946493,1774613465254,-160.18792895,0.00019178,2]
[418946494,1774613465264,-157.73603753,0.00019228,120]
[418946495,1774613465274,-229.43351824,0.00019269,120]
[418946496,1774613465284,-159.45033389,0.00019269,120]
[418946497,1774613465294,-5633.14255284,0.000193,2]
[418946498,1774613465304,-525.36251356,0.00019342,120]
[418946499,1774613465314,-352.59756125,0.00019342,3]
[418946500,1774613465323,-313.85939252,0.00019352,120]
[418946501,1774613465333,-162.22210596,0.00019352,120]
[418946502,1774613465342,-210.31471661,0.00019429,120]
[418946503,1774613465351,-301.54454551,0.00019429,120]
[418946504,1774613465361,-698.2,0.00019452,2]
[418946505,1774613465372,-83712.84568923,0.0001948,2]
[418946506,1774613465381,-239.41358973,0.00019482,120]
[418946507,1774613465391,-336.37838689,0.00019484,120]
[418946508,1774613465401,-202.23680987,0.00019487,120]
[418946509,1774613465410,-431.92140401,0.00019487,120]
[418946510,1774613465421,-5633.14255284,0.000195,2]
[418946511,1774613465430,-1000.0,0.000195,2]
[418946512,1774613465440,-1232.57,0.00019589,3]
[418946513,1774613465451,-1232.57,0.00019589,3]
[418946514,1774613465460,-1282.46,0.00019589,3]
[418946515,1774613465470,-1282.46,0.00019589,3]
[418946516,1774613465479,-1282.46,0.00019589,3]
[418946517,1774613465489,-1282.46,0.00019589,3]
[418946518,1774613465498,-215.96070197,0.00019623,120]
[418946519,1774613465508,-153.61588867,0.00019623,120]
[418946520,1774613465518,-183.4005244,0.00019623,60]
[418946521,1774613465528,-161.9522828,0.00019625,14]
[418946522,1774613465537,-177.3760194,0.00019625,120]
[418946523,1774613465547,-202.23680986,0.00019628,120]
[418946524,1774613465556,-1588.79616164,0.00019693,29]
[418946525,1774613465566,-5633.14255284,0.000197,2]
[418946526,1774613465576,-1282.46,0.00019726,3]
[418946527,1774613465586,-1282.46,0.00019726,3]
[418946528,1774613465595,-1282.46,0.00019726,3]
[418946529,1774613465605,-1282.46,0.00019726,3]
[418946530,1774613465615,-401.54910776,0.00019726,2]
[418946531,1774613465624,-160.0,0.000198,4]
[418946532,1774613465634,-160.0,0.000198,5]
[418946533,1774613465643,-158.0,0.000198,4]
[418946534,1774613465653,-1181.643486,0.0001984,5]
[418946535,1774613465662,-1000.0,0.0001986,5]
[418946536,1774613465672,-14291.13053139,0.00019864,2]
[418946537,1774613465682,-1000.0,0.0001988,5]
[418946538,1774613465691,-1000.0,0.000199,5]
[418946539,1774613465701,-601.0,0.00019914,120]
[418946540,1774613465710,-1000.0,0.0001992,5]
[418946541,1774613465720,-165.734,0.00019925,2]
[418946542,1774613465730,-439.0,0.00019925,2]
[418946543,1774613465739,-184.0,0.00019925,2]
[418946544,1774613465748,-184.0,0.00019925,2]
[418946545,1774613465757,-1000.0,0.0001994,5]
[418946546,1774613465766,-1000.0,0.0001996,5]
[418946547,1774613465776,-1000.0,0.0001998,5]
[418946548,1774613465786,-110370.1643482,0.00019999,2]
[418946549,1774613465795,-895589.47423645,0.0002,2]
[418946550,1774613465938,-13085.44594305,0.0002,2]
[418946551,1774613465950,-202768.60995433,0.0002,2]
[418946552,1774613465962,-1817.3624382,0.0002,2]
[418946553,1774613465971,-337159.90487177,0.0002,2]
[418946554,1774613465983,-64099.77652566,0.0002,2]
[418946555,1774613465995,-706.19557202,0.0002,2]
[418946556,1774613466007,-418.6,0.0002,2]
[418946557,1774613466018,-4079.5963172,0.0002,2]
[418946558,1774613466029,-1341.25548051,0.0002,2]
[418946559,1774613466041,-5591.05590275,0.0002,2]
[418946560,1774613466157,-151.0,0.00013699,2]
[418946561,1774613466167,-151.0,0.00013699,2]
[418946562,1774613466178,-151.0,0.00013699,2]
[418946563,1774613466187,-151.0,0.00013699,2]
[418946564,1774613466196,-177.79997977,0.00013699,2]
[418946565,1774613466206,-1412.306439,0.00016438,2]
[418946566,1774613466217,-10.40497014,0.00016438,2]
[418946567,1774613466229,-697.56296583,0.00016438,2]
[418946568,1774613466240,-298.84574358,0.00016438,2]
[418946569,1774613466257,-405.49275945,0.00016438,2]
[418946570,1774613466268,-151.0,0.00016438,2]
[418946571,1774613466279,-1412.306439,0.00016438,2]
[418946572,1774613466289,-182.040966,0.00016438,2]
[418946573,1774613466299,-789.294889,0.00016438,2]
[418946574,1774613466309,-789.294889,0.00016438,2]
[418946575,1774613466319,-789.294889,0.00016438,2]
[418946576,1774613466329,-529.95967222,0.00016438,2]
[418946577,1774613466340,-259.33521678,0.00016438,2]
[418946578,1774613466350,-30589.89388093,0.0002,2]
[418946579,1774613466361,-11454.22642804,0.0002,2]
[418946580,1774613466372,-975.0,0.0002,2]
[418946581,1774613466383,-354.69225279,0.0002,2]
[418946582,1774613466395,-558.0,0.0002,2]
[418946583,1774613466631,-151.0,0.00013699,2]
[418946584,1774613466641,-151.0,0.00013699,2]
[418946585,1774613466651,-151.0,0.00013699,2]
[418946586,1774613466661,-151.0,0.00013699,2]
[418946587,1774613466670,-161.85659865,0.00013699,2]
[418946588,1774613466680,-566.10772966,0.00016438,2]
[418946589,1774613466692,-223.18715934,0.00016438,2]
[418946590,1774613466702,-789.294889,0.00016438,2]
[418946591,1774613466711,-789.294889,0.00016438,2]
[418946592,1774613466721,-789.294889,0.00016438,2]
[418946593,1774613466731,-31.57103503,0.00016438,2]
[418946594,1774613466743,-757.72385397,0.00016438,2]
[418946595,1774613466752,-34.4432442,0.00016438,2]
[418946596,1774613466763,-754.8516448,0.00016438,2]
[418946597,1774613466772,-789.294889,0.00016438,2]
[418946598,1774613466781,-789.294889,0.00016438,2]
[418946599,1774613466790,-789.294889,0.00016438,2]
[418946600,1774613466799,-17948.54966817,0.0002,2]
[418946601,1774613466810,-18500.32325451,0.0002,2]
[418946602,1774613466821,-6606.963854,0.0002,2]
[418946603,1774613466836,-11317.58831437,0.0002,2]
[418946604,1774613466847,-6634.99239442,0.0002,2]
[418946605,1774613466859,-7400.94457519,0.0002,2]
[418946606,1774613466870,-14003.21654048,0.0002,2]
[418946607,1774613466882,-374.69649333,0.0002,2]
[418946608,1774613466946,-0.00566718,0.0002,2]
[418946609,1774613466958,-1256.14986181,0.0002,2]
[418946610,1774613467096,-206.45623152,0.00012729,2]
[418946611,1774613467106,-206.45623152,0.00012983,7]
[418946612,1774613467116,-206.45623152,0.00013365,14]
[418946613,1774613467126,-789.294889,0.00016438,2]
[418946614,1774613467135,-789.294889,0.00016438,2]
[418946615,1774613467146,-789.294889,0.00016438,2]
[418946616,1774613467155,-789.294889,0.00016438,2]
[418946617,1774613467164,-789.294889,0.00016438,2]
[418946618,1774613467174,-789.294889,0.00016438,2]
[418946619,1774613467183,-789.294884,0.00016438,2]
[418946620,1774613467193,-1184.16063,0.000195,2]
[418946621,1774613467203,-262943.8658738,0.0002,2]
[418946622,1774613467215,-414.3965,0.0002,2]
[418946623,1774613467233,-11502.16334037,0.0002,2]
[418946624,1774613467244,-1257.42635663,0.0002,2]
[418946625,1774613467255,-494.293216,0.0002,2]
[418946626,1774613467266,-799.65154018,0.0002,2]
[418946627,1774613467278,-186971.58443844,0.0002,2]
[418946628,1774613467289,-6006.64888033,0.0002,2]
[418946633,1774614399181,-1000.0,4.538e-05,2]
[418946634,1774614409879,-1000.0,4.538e-05,2]
[418946635,1774614421022,-1000.0,4.538e-05,2]
[418946636,1774614424964,-64.90399877,4.538e-05,2]
[418946637,1774614436378,135.09600123,4.538e-05,2]
[418946667,1774614631887,-253.08869634,4.538e-05,2]
[418946668,1774614631946,-993.75000002,4.538e-05,2]
[418946669,1774614631959,-250.5264,4.538e-05,2]
[418946670,1774614631970,-566.01503087,4.538e-05,2]
[418946700,1774614638009,-3762.27447946,4.538e-05,2]
[418946707,1774614638068,-2505.41777256,4.538e-05,2]
[418946710,1774614638080,-4476.20888536,4.538e-05,2]
[418946712,1774614638091,-271.96295399,4.538e-05,2]
[418946717,1774614638127,-2870.50814605,4.538e-05,2]
[418946719,1774614638138,-12471.81983404,4.538e-05,2]
[418946813,1774614641080,-650.81921387,4.538e-05,2]
[418946826,1774614643330,-1216.8948103,4.538e-05,2]
[418946827,1774614643377,-1807.31741179,4.538e-05,2]
[418946828,1774614643394,-3608.0361467,4.538e-05,2]
[418946829,1774614643410,-6252.06902578,4.538e-05,2]
[418946882,1774614646509,-3405.79994858,4.538e-05,2]
[418946883,1774614646523,-5142.0,4.538e-05,2]
[418946884,1774614646569,-73644.38884485,4.538e-05,2]
[418946892,1774615262557,300.0,4.437e-05,2]
[418946893,1774615377932,9121.7,4.338e-05,2]
[418946933,1774615832220,-352.65192315,4.338e-05,2]
[418946963,1774615838312,-1226898.82841502,4.338e-05,2]
[418946965,1774615838323,-4869.65549784,4.338e-05,2]
[418946967,1774615838334,-37633.94248179,4.338e-05,2]
[418947103,1774615840883,-5890.6388292,4.338e-05,2]
[418947129,1774615845796,-13292.59999998,4.338e-05,2]
[418947149,1774615846471,-709.05352591,4.338e-05,2]
[418947155,1774615846801,-2220.41692723,4.338e-05,2]
[418947156,1774616160702,-1000.0,4.238e-05,2]
[418947157,1774616162152,-1000.0,4.238e-05,2]
[418947158,1774616162976,-1000.0,4.238e-05,2]
[418947159,1774616163463,-1000.0,4.238e-05,2]
[418947160,1774616163692,-1000.0,4.238e-05,2]
[418947161,1774616164135,-1000.0,4.238e-05,2]
[418947162,1774616164547,-1000.0,4.238e-05,2]
[418947163,1774616164929,-1000.0,4.238e-05,2]
[418947164,1774616165266,-1000.0,4.238e-05,2]
[418947165,1774616165672,-1000.0,4.238e-05,2]
[418947166,1774616166869,-1000.0,4.238e-05,2]
[418947167,1774616167953,-1000.0,4.238e-05,2]
[418947168,1774616168906,-1000.0,4.238e-05,2]
[418947169,1774616170123,-1000.0,4.238e-05,2]
[418947170,1774616171029,-1000.0,4.238e-05,2]
[418947171,1774616204274,-1000.0,4.196e-05,2]
[418947172,1774616205251,-1000.0,4.196e-05,2]
[418947173,1774616206306,-1000.0,4.196e-05,2]
[418947174,1774616208250,-1000.0,4.196e-05,2]
[418947175,1774616208981,-1000.0,4.196e-05,2]
[418947176,1774616209699,-558.15945573,4.196e-05,2]
[418947177,1774616209724,-441.84054427,4.238e-05,2]
[418947178,1774616210496,-1000.0,4.238e-05,2]
[418947179,1774616211339,-1000.0,4.238e-05,2]
[418947180,1774616212207,-1000.0,4.238e-05,2]
[418947181,1774616212972,-1000.0,4.238e-05,2]
[418947182,1774616213768,-1000.0,4.238e-05,2]
[418947183,1774616214641,-1000.0,4.238e-05,2]
[418947184,1774616215408,-1000.0,4.238e-05,2]
[418947185,1774616216282,-1000.0,4.238e-05,2]
[418947186,1774616217153,-1000.0,4.238e-05,2]
[418947187,1774616217976,-1000.0,4.238e-05,2]
[418947188,1774616219014,-1000.0,4.238e-05,2]
[418947189,1774616220122,-1000.0,4.238e-05,2]
[418947190,1774616220992,-1000.0,4.238e-05,2]
[418947191,1774616221894,-1000.0,4.238e-05,2]
[418947192,1774616274873,-1200.0,4.238e-05,2]
[418947193,1774616328456,-2800.0,4.138e-05,2]
[418947194,1774616368818,-250.0,4.138e-05,2]
[418947195,1774616381072,-270.0,4.138e-05,2]
[418947211,1774617032277,-1002.36705731,4.038e-05,2]
[418947212,1774617032288,-1980.73866675,4.038e-05,2]
[418947213,1774617032298,-10392.23858148,4.038e-05,2]
[418947228,1774617038393,-192630.0524915,4.038e-05,2]
[418947229,1774617038450,-10577.9862083,4.038e-05,2]
[418947230,1774617038508,-988.23170697,4.038e-05,2]
[418947236,1774617041122,-353.435,4.038e-05,2]
[418947245,1774617044002,-82459.65944092,4.038e-05,2]
[418947246,1774617044014,-666.48382913,4.038e-05,2]
[418947259,1774617046537,-77723.53174461,4.038e-05,2]
[418947260,1774617046870,-1593.90481546,4.038e-05,2]
[418947272,1774617050057,-2357.72519592,4.038e-05,2]
[418947275,1774618010263,842.270568,7.7e-05,120]
[418947276,1774618010291,2000.0,7.7e-05,120]
[418947281,1774618145957,2167.70543101,7.65e-05,120]
[418947283,1774618224658,-1064.763,3.837e-05,2]
[418947286,1774618232556,-1202.43828814,3.837e-05,2]
[418947315,1774618238571,-1543.12731525,3.837e-05,2]
[418947329,1774618238694,-1093.29531588,3.837e-05,2]
[418947331,1774618238706,-202768.60995433,3.837e-05,2]
[418947428,1774618241268,-2875.26254868,3.837e-05,2]
[418947429,1774618241280,-18859.83481046,3.837e-05,2]
[418947430,1774618241331,-755.60255057,3.837e-05,2]
[418947499,1774618243974,-15923.66375187,3.837e-05,2]
[418947501,1774618243987,-2117.33197332,3.837e-05,2]
[418947964,1774618250633,-1465.33975539,3.837e-05,2]
[418948368,1774618530081,-300.0,6.039e-05,29]
[418948372,1774619215164,-1000.0,3.537e-05,2]
[418948373,1774619216681,-1000.0,3.537e-05,2]
[418948374,1774619217066,-1000.0,3.537e-05,2]
[418948375,1774619217375,-1000.0,3.537e-05,2]
[418948376,1774619217745,-1000.0,3.537e-05,2]
[418948377,1774619218077,-1000.0,3.537e-05,2]
[418948378,1774619218450,-1000.0,3.537e-05,2]
[418948379,1774619218866,-1000.0,3.537e-05,2]
[418948380,1774619219165,-1000.0,3.537e-05,2]
[418948381,1774619219526,-1000.0,3.537e-05,2]
[418948382,1774619219892,-1000.0,3.537e-05,2]
[418948383,1774619220311,-1000.0,3.537e-05,2]
[418948384,1774619220629,-1000.0,3.537e-05,2]
[418948385,1774619221023,-1000.0,3.537e-05,2]
[418948386,1774619221357,-1000.0,3.537e-05,2]
[418948387,1774619221776,-1000.0,3.537e-05,2]
[418948388,1774619222096,-1000.0,3.537e-05,2]
[418948389,1774619222519,-1000.0,3.537e-05,2]
[418948390,1774619222906,-1000.0,3.537e-05,2]
[418948391,1774619223236,-1000.0,3.537e-05,2]
[418948392,1774619223645,-1000.0,3.537e-05,2]
[418948393,1774619224059,-1000.0,3.537e-05,2]
[418948394,1774619224355,-1000.0,3.537e-05,2]
[418948395,1774619224759,-1000.0,3.537e-05,2]
[418948396,1774619225298,-1000.0,3.537e-05,2]
[418948397,1774619225670,-1000.0,3.537e-05,2]
[418948398,1774619225886,-1000.0,3.537e-05,2]
[418948399,1774619226299,-1000.0,3.537e-05,2]
[418948400,1774619226695,-1000.0,3.537e-05,2]
[418948401,1774619227098,-1000.0,3.537e-05,2]
[418948402,1774619227534,-1000.0,3.537e-05,2]
[418948403,1774619227843,-1000.0,3.537e-05,2]
[418948404,1774619228293,-1000.0,3.537e-05,2]
[418948405,1774619228707,-1000.0,3.537e-05,2]
[418948406,1774619230646,-1000.0,3.537e-05,2]
[418948407,1774619231990,-1000.0,3.537e-05,2]
[418948408,1774619232849,-1000.0,3.537e-05,2]
[418948409,1774619233763,-1000.0,3.537e-05,2]
[418948410,1774619234638,-1000.0,3.537e-05,2]
[418948411,1774619235595,-1000.0,3.537e-05,2]
[418948412,1774619267895,-1000.0,3.537e-05,2]
[418948413,1774619268783,-1000.0,3.537e-05,2]
[418948414,1774619269609,-1000.0,3.537e-05,2]
[418948415,1774619270455,-1000.0,3.537e-05,2]
[418948416,1774619271336,-1000.0,3.537e-05,2]
[418948417,1774619315000,-300.0,3.536e-05,2]
[418948418,1774619315027,-700.0,3.537e-05,2]
[418948419,1774619321635,-400.0,3.537e-05,2]
[418948420,1774619345447,-268.0,3.536e-05,2]
[418948421,1774619345473,-732.0,3.537e-05,2]
[418948422,1774619346303,-1000.0,3.537e-05,2]
[418948423,1774619351437,-850.0,3.537e-05,2]
[418948500,1774619438923,-281.00721637,3.436e-05,2]
[418948501,1774619438932,-300.0,3.536e-05,2]
[418948502,1774619438942,-843.0,3.536e-05,2]
[418948503,1774619438951,-193767.49492164,3.537e-05,2]
[418948504,1774619438962,-473.57376399,3.537e-05,2]
[418948505,1774619439092,-400.6104998,3.537e-05,2]
[418948536,1774619441983,-6645.2,3.537e-05,2]
[418948619,1774619451153,-4906.0499978,3.537e-05,2]
[418948626,1774619451214,-16355.92195103,3.537e-05,2]
[418948628,1774619451226,-728.98,3.537e-05,2]
[418948912,1774620137384,-200.0,5.894e-05,25]
[418948913,1774620138674,-100.0,5.894e-05,25]
[418948925,1774620631816,-300.0,3.607e-05,2]
[418948926,1774620631826,-300.0,3.607e-05,2]
[418948927,1774620631835,-6010.0,3.737e-05,2]
[418948928,1774620631848,-22435.17,3.737e-05,2]
[418948929,1774620631857,-43664.82999999,3.837e-05,2]
[418948953,1774620641607,-6609.3,3.837e-05,2]
[418948954,1774620641619,-3778.12765899,3.837e-05,2]
[418948957,1774620641842,-15736.34909136,3.837e-05,2]
[418948969,1774620643354,-3248.00000119,3.837e-05,2]
[418948970,1774620643365,-6744.46012132,3.837e-05,2]
[418948987,1774620646262,-6750.28712789,3.837e-05,2]
[418948988,1774620646544,-8503.56492857,3.837e-05,2]
[418949008,1774621823958,-300.0,3.913e-05,2]
[418949009,1774621823989,-300.0,3.913e-05,2]
[418949010,1774621824021,-300.0,3.913e-05,2]
[418949011,1774621824051,-300.0,3.913e-05,2]
[418949012,1774621824082,-121.90757841,3.913e-05,2]
[418949013,1774621824094,-178.09242159,3.913e-05,2]
[418949014,1774621824104,-121.90757841,3.913e-05,2]
[418949015,1774621824115,-178.09242159,3.913e-05,2]
[418949016,1774621824124,-121.90757841,3.913e-05,2]
[418949017,1774621824135,-178.09242159,3.913e-05,2]
[418949018,1774621824145,-121.90757841,3.913e-05,2]
[418949019,1774621824161,-178.09242159,3.913e-05,2]
[418949020,1774621824170,-121.90757841,3.913e-05,2]
[418949021,1774621824182,-178.09242159,3.913e-05,2]